Cogmind - Beta 12 @@@ ROGUE MODE // 2023.05.04 @ 12:42:21 Player: Mr Goldstein Result: Self-destructed Performance ------------- Evolutions (5) 2500 Regions Visited (9) 1800 Robots Destroyed (2) 10 Value Destroyed (13) 13 Prototype IDs (0) 0 Alien Tech Used (0) 0 Bonus (0) 0 TOTAL SCORE: 4323 Bonus ------- None Cogmind --------- Core Integrity 220/1000 Matter 196/300 Energy 99/100 System Corruption 0% Temperature Cool (0) Movement Core (50) Location -5/Upper Caves Parts ------- > --- POWER (2) -------- (None) > --- PROPULSION (7) --- (None) > --- UTILITY (6) ------ Machine Analyzer Advanced Visual Processing Unit > --- WEAPON (2) ------- (None) > --- INVENTORY (5) ---- Nuclear Core Heavy Hammer Peak State ------------ > --- POWER ------------ Micro Fission Core > --- PROPULSION ------- Xenon Bombardment Thruster Field Propulsion Drive > --- UTILITY ---------- Machine Analyzer Advanced Visual Processing Unit Hacking Suite > --- WEAPON ----------- (None) > --- INVENTORY -------- Nuclear Core Heavy Hammer [Rating: 25] Favorites ----------- Power Micro Fission Core Engine Improved Deuterium Engine Power Core Micro Fission Core Propulsion Improved Treads Treads Improved Treads Flight Unit VTOL Module Utility Hacking Suite Processor Machine Analyzer Hackware Hacking Suite Protection Propulsion Shielding Weapon Flail Impact Weapon Flail Build | -11 -10 -9 -9 -8 -7 -6 -5 -5 -5 ------- Run | Jun Mat Mat Min Mat Fac Fac Fac Upp Upp Slots Evolved 10 | . . 2 . 2 2 2 2 . . Power 1 | . . . . . 1 . . . . Propulsion 5 | . . 2 . 1 . . 2 . . Utility 4 | . . . . 1 1 2 . . . Weapon . | . . . . . . . . . . Parts Attached 22 | 2 5 3 . 1 7 1 3 . . Power 2 | . . . . . 1 . 1 . . Engine 1 | . . . . . 1 . . . . Core 1 | . . . . . . . 1 . . Reactor . | . . . . . . . . . . Propulsion 11 | 2 2 1 . . 4 . 2 . . Treads 4 | 2 2 . . . . . . . . Leg . | . . . . . . . . . . Wheel . | . . . . . . . . . . Hover . | . . . . . . . . . . Flight 7 | . . 1 . . 4 . 2 . . Utility 8 | . 2 2 . 1 2 1 . . . Device . | . . . . . . . . . . Storage . | . . . . . . . . . . Processor 2 | . . . . 1 . 1 . . . Hackware 3 | . . 2 . . 1 . . . . Protection 3 | . 2 . . . 1 . . . . Artifact . | . . . . . . . . . . Weapon 1 | . 1 . . . . . . . . Energy Gun . | . . . . . . . . . . Energy Cannon . | . . . . . . . . . . Ballistic Gun . | . . . . . . . . . . Ballistic Cannon . | . . . . . . . . . . Launcher . | . . . . . . . . . . Special Weapon . | . . . . . . . . . . Impact Weapon 1 | . 1 . . . . . . . . Slashing Weapon . | . . . . . . . . . . Piercing Weapon . | . . . . . . . . . . Special Melee Weapon . | . . . . . . . . . . Unidentified Prototypes . | . . . . . . . . . . Parts Lost 11 | . . . . 1 4 1 2 3 . Power . | . . . . . . . . . . Propulsion 7 | . . . . 1 2 1 1 2 . Utility 4 | . . . . . 2 . 1 1 . Weapon . | . . . . . . . . . . Highest Loss Streak 3 | . . . . 1 2 3 2 2 . To Critical Strikes . | . . . . . . . . . . Average Slot Usage (%) 42 | . 45 46 55 52 54 35 33 28 11 Core 1 | . . . . . . . 3 4 . Treads 9 | . 28 22 22 18 2 . . . . Flight 8 | . . 4 11 8 21 10 8 5 . Processor 6 | . . . . 8 7 10 11 11 11 Hackware 9 | . . 17 22 18 11 6 5 4 . Protection 3 | . 12 2 . . 5 6 2 . . Naked Turns . | . . . . . . . . . . Heaviest Build 11 | . 3 1 . . 11 1 6 5 . Greatest Support 16 | 3 3 3 3 3 16 8 13 13 3 Greatest Overweight (x) . | . . . . . . . . . . Average Overweight (x) . | . . . . . . . . . . Largest Inventory Capacity 5 | 5 5 5 5 5 5 5 5 5 5 Average Capacity 5 | 5 5 5 5 5 5 5 5 5 5 Most Carried 5 | . 5 5 5 5 5 2 2 2 2 Average Carried 2 | . 2 5 5 5 1 2 2 2 2 Final Capacity 5 | 5 5 5 5 5 5 5 5 5 5 Final Carried 5 | . 5 5 5 5 2 2 2 2 2 Class Distribution -------------------- 43% | Mutant 39% | Hacker-Mutant 11% | Sprinter 4% | Hacker-Sprinter Dominant Class ---------------- Mutant | -10/Materials Hacker-Mutant | -9/Materials Hacker-Mutant | -9/Mines Hacker-Mutant | -8/Materials Sprinter | -7/Factory Sprinter | -6/Factory Mutant | -5/Factory Mutant | -5/Upper Caves Mutant | -5/Upper Caves Resources | -11 -10 -9 -9 -8 -7 -6 -5 -5 -5 ----------- Run | Jun Mat Mat Min Mat Fac Fac Fac Upp Upp Matter Collected 238 | 156 69 . 13 . . . . . . Remotely . | . . . . . . . . . . Salvage Created 69 | . 69 . . . . . . . . Parts 9 | . 9 . . . . . . . . Haulers Intercepted . | . . . . . . . . . . Recyclers Shooed . | . . . . . . . . . . Parts Field Recycled . | . . . . . . . . . . Retrieved Matter . | . . . . . . . . . . Parts Self-Destructed . | . . . . . . . . . . Prevented . | . . . . . . . . . . Kills | -11 -10 -9 -9 -8 -7 -6 -5 -5 -5 ------- Run | Jun Mat Mat Min Mat Fac Fac Fac Upp Upp Combat Hostiles Destroyed . | . . . . . . . . . . Classes Destroyed 2 | . 2 . . . . . . . . Tunneler 1 | . 1 . . . . . . . . Recycler 1 | . 1 . . . . . . . . Best Kill Streak 2 | . 2 . . . . . . . . Combat Bots Only . | . . . . . . . . . . Max Kills in Single Turn 1 | . 1 . . . . . . . . Gunslinging . | . . . . . . . . . . Exploded . | . . . . . . . . . . Melee . | . . . . . . . . . . Uniques/NPCs Destroyed . | . . . . . . . . . . Combat | -11 -10 -9 -9 -8 -7 -6 -5 -5 -5 -------- Run | Jun Mat Mat Min Mat Fac Fac Fac Upp Upp Damage Taken 1641 | . 60 . 14 181 317 93 227 290 459 Core 1070 | . 23 . 8 54 130 75 138 183 459 Absorbed by Shields . | . . . . . . . . . . Redirected to Shielding 57 | . 7 . . . 30 5 15 . . Core Remaining (%) 91 | 100 90 . 98 90 81 91 . . . Volleys Fired . | . . . . . . . . . . Largest . | . . . . . . . . . . Hottest . | . . . . . . . . . . Shots Fired . | . . . . . . . . . . Gun . | . . . . . . . . . . Cannon . | . . . . . . . . . . Launcher . | . . . . . . . . . . Special . | . . . . . . . . . . Kinetic . | . . . . . . . . . . Thermal . | . . . . . . . . . . Explosive . | . . . . . . . . . . Electromagnetic . | . . . . . . . . . . Robot Hit Streak . | . . . . . . . . . . Robot Miss Streak . | . . . . . . . . . . Penetration Max . | . . . . . . . . . . Secondary Targets . | . . . . . . . . . . Shots Hit Robots 2 | . 2 . . . . . . . . Core Hits 3 | . 3 . . . . . . . . Critical Kills 1 | . 1 . . . . . . . . Critical Parts Destroyed . | . . . . . . . . . . Critical Strikes 1 | . 1 . . . . . . . . Smash 1 | . 1 . . . . . . . . Melee Attacks 2 | . 2 . . . . . . . . Impact 2 | . 2 . . . . . . . . Slashing . | . . . . . . . . . . Piercing . | . . . . . . . . . . Sneak Attacks 2 | . 2 . . . . . . . . Combat Hostiles . | . . . . . . . . . . Follow-up Attacks . | . . . . . . . . . . Damage Inflicted 202 | . 201 . 1 . . . . . . Guns . | . . . . . . . . . . Cannons . | . . . . . . . . . . Explosions . | . . . . . . . . . . Melee 179 | . 179 . . . . . . . . Ramming 23 | . 22 . 1 . . . . . . Kinetic . | . . . . . . . . . . Thermal . | . . . . . . . . . . Explosive . | . . . . . . . . . . Electromagnetic . | . . . . . . . . . . Impact 179 | . 179 . . . . . . . . Slashing . | . . . . . . . . . . Piercing . | . . . . . . . . . . Highest Corruption . | . . . . . . . . . . Average Corruption . | . . . . . . . . . . Corruption Purged . | . . . . . . . . . . Corruption Blocked . | . . . . . . . . . . Overload Shots . | . . . . . . . . . . Overflow Damage . | . . . . . . . . . . Projectiles . | . . . . . . . . . . Explosions . | . . . . . . . . . . Melee . | . . . . . . . . . . Knockbacks . | . . . . . . . . . . Impact . | . . . . . . . . . . Kinetic . | . . . . . . . . . . Secondary . | . . . . . . . . . . Self-Inflicted Damage 10 | . 10 . . . . . . . . Shots . | . . . . . . . . . . Rammed 7 | . 6 . 1 . . . . . . Targets Rammed 7 | . 6 . 1 . . . . . . Kicked . | . . . . . . . . . . Crushed . | . . . . . . . . . . Highest Temperature 4 | . . . . . 4 . . . . Average Temperature 3 | . . . . . 3 . . . . Received Heat Transfer 225 | . . . . 18 72 9 9 54 63 Siege Activations . | . . . . . . . . . . Robots Corrupted . | . . . . . . . . . . Combat Hostiles . | . . . . . . . . . . Parts Fried . | . . . . . . . . . . Impact Corruptions . | . . . . . . . . . . Robots Melted . | . . . . . . . . . . Combat Hostiles . | . . . . . . . . . . Parts Melted . | . . . . . . . . . . Heat Transferred . | . . . . . . . . . . Parts Sabotaged . | . . . . . . . . . . Parts Stolen . | . . . . . . . . . . Parts Stripped . | . . . . . . . . . . Power Chain Reactions . | . . . . . . . . . . Missiles Intercepted . | . . . . . . . . . . Alert | -11 -10 -9 -9 -8 -7 -6 -5 -5 -5 ------- Run | Jun Mat Mat Min Mat Fac Fac Fac Upp Upp Peak Influence 236 | . 25 46 17 168 236 150 209 . . Initial 115 | . . 10 17 6 76 115 73 . . Average 71 | . 13 37 17 64 118 127 121 . . Maximum Alert Level 1 | . . . . . 1 . 1 . . Low Security (%) 98 | 100 100 100 100 100 95 100 99 . . Level 1 1 | . . . . . 4 . . . . Level 2 . | . . . . . . . . . . Level 3 . | . . . . . . . . . . Level 4 . | . . . . . . . . . . Level 5 . | . . . . . . . . . . High Security . | . . . . . . . . . . Max Security . | . . . . . . . . . . Squads Dispatched 8 | . 2 1 . 1 2 1 1 . . Investigation 3 | . 1 . . . 1 1 . . . Extermination . | . . . . . . . . . . Reinforcement 5 | . 1 1 . 1 1 . 1 . . Assault . | . . . . . . . . . . Garrison . | . . . . . . . . . . Intercept . | . . . . . . . . . . Searches Triggered . | . . . . . . . . . . Construction Impeded . | . . . . . . . . . . Haulers Reinforced . | . . . . . . . . . . Active Scanning Responses . | . . . . . . . . . . Cargo Convoy Interrupts . | . . . . . . . . . . Stealth | -11 -10 -9 -9 -8 -7 -6 -5 -5 -5 --------- Run | Jun Mat Mat Min Mat Fac Fac Fac Upp Upp Distress Signals 3 | . . . . 3 . . . . . Communications Jammed . | . . . . . . . . . . Distress Signals . | . . . . . . . . . . Times Spotted 96 | . 6 1 4 15 19 6 11 20 14 Peak Tracking Total 14 | . 6 1 4 14 9 6 9 13 11 Tactical Retreats 10 | . . . . 2 2 . 2 3 1 Traps | -11 -10 -9 -9 -8 -7 -6 -5 -5 -5 ------- Run | Jun Mat Mat Min Mat Fac Fac Fac Upp Upp Traps Triggered . | . . . . . . . . . . Indirectly . | . . . . . . . . . . Trap Hack Attempts . | . . . . . . . . . . Triggered . | . . . . . . . . . . Disarmed . | . . . . . . . . . . Reprogrammed . | . . . . . . . . . . Reused . | . . . . . . . . . . Traps Extracted . | . . . . . . . . . . Installed . | . . . . . . . . . . Triggered . | . . . . . . . . . . Machines | -11 -10 -9 -9 -8 -7 -6 -5 -5 -5 ---------- Run | Jun Mat Mat Min Mat Fac Fac Fac Upp Upp Machines Disabled . | . . . . . . . . . . Max in Single Turn . | . . . . . . . . . . Machines Repaired . | . . . . . . . . . . Machines Sabotaged . | . . . . . . . . . . Overloaded Fab Kills . | . . . . . . . . . . Hacking | -11 -10 -9 -9 -8 -7 -6 -5 -5 -5 --------- Run | Jun Mat Mat Min Mat Fac Fac Fac Upp Upp Machines Accessed 8 | . 1 1 . 1 3 1 1 . . Terminals 5 | . 1 1 . 1 1 . 1 . . Fabricators 2 | . . . . . 2 . . . . Repair Stations . | . . . . . . . . . . Recycling Units 1 | . . . . . . 1 . . . Scanalyzers . | . . . . . . . . . . Garrison Access . | . . . . . . . . . . Total Hacks 15 | . 3 1 . 2 6 1 2 . . Successful 8 | . . 1 . 1 4 1 1 . . Failed 7 | . 3 . . 1 2 . 1 . . Catastrophic 3 | . 1 . . . 2 . . . . Database Lockouts . | . . . . . . . . . . Manual 13 | . 3 1 . 2 4 1 2 . . Terminals 10 | . 3 1 . 2 2 . 2 . . Fabricators 4 | . . . . . 4 . . . . Repair Stations . | . . . . . . . . . . Recycling Units 1 | . . . . . . 1 . . . Scanalyzers . | . . . . . . . . . . Garrison Access . | . . . . . . . . . . Terminal Hacks 3 | . . 1 . 1 . . 1 . . Level Access Points 1 | . . . . 1 . . . . . Branch Access Points 2 | . . 1 . . . . 1 . . Fabricator Hacks 2 | . . . . . 2 . . . . Build 2 | . . . . . 2 . . . . Repair Station Hacks . | . . . . . . . . . . Recycling Unit Hacks . | . . . . . . . . . . Scanalyzer . | . . . . . . . . . . Garrison Access Hacks . | . . . . . . . . . . Unauthorized Hacks 3 | . . . . . 2 1 . . . Terminals . | . . . . . . . . . . Fabricators 2 | . . . . . 2 . . . . Liberate 2 | . . . . . 2 . . . . Repair Stations . | . . . . . . . . . . Recycling Units 1 | . . . . . . 1 . . . Tunnel 1 | . . . . . . 1 . . . Scanalyzers . | . . . . . . . . . . Garrison Access . | . . . . . . . . . . Data Cores Recovered . | . . . . . . . . . . Used . | . . . . . . . . . . Hacking Detections 4 | . 1 1 . 1 1 . . . . Full Trace Events 2 | . 1 . . . 1 . . . . Feedback Events . | . . . . . . . . . . Feedback Blocked . | . . . . . . . . . . Robot Schematics Acquired . | . . . . . . . . . . Robots Built 1 | . . . . . 1 . . . . Authchips . | . . . . . . . . . . Time 174 | . . . . . 174 . . . . Total Robot Build Rating 1 | . . . . . 1 . . . . Part Schematics Acquired . | . . . . . . . . . . Parts Built . | . . . . . . . . . . Authchips . | . . . . . . . . . . Time . | . . . . . . . . . . Total Part Build Rating . | . . . . . . . . . . Parts Repaired . | . . . . . . . . . . Time . | . . . . . . . . . . Parts Recycled . | . . . . . . . . . . Recycled Matter . | . . . . . . . . . . Retrieved Matter . | . . . . . . . . . . Retrieved Components . | . . . . . . . . . . Parts Scanalyzed . | . . . . . . . . . . Part Schematics Acquired . | . . . . . . . . . . Parts Damaged . | . . . . . . . . . . Bothacking | -11 -10 -9 -9 -8 -7 -6 -5 -5 -5 ------------ Run | Jun Mat Mat Min Mat Fac Fac Fac Upp Upp Used RIF Installer . | . . . . . . . . . . Robots Hacked . | . . . . . . . . . . Non-combat . | . . . . . . . . . . Combat . | . . . . . . . . . . Robot Hacks Applied . | . . . . . . . . . . Relay Couplers Released . | . . . . . . . . . . Fabnet Peak Effective % . | . . . . . . . . . . Robots Rewired . | . . . . . . . . . . Allies Hacked . | . . . . . . . . . . Hacks Repelled . | . . . . . . . . . . Allies | -11 -10 -9 -9 -8 -7 -6 -5 -5 -5 -------- Run | Jun Mat Mat Min Mat Fac Fac Fac Upp Upp Total Allies 1 | . . . . . 1 . . . . Largest Group 1 | . . . . . 1 . . . . Highest-Rated Group 6 | . . . . . 6 . . . . Highest-Rated Ally 6 | . . . . . 6 . . . . Total Orders . | . . . . . . . . . . Ally Attacks . | . . . . . . . . . . Total Damage . | . . . . . . . . . . Kills . | . . . . . . . . . . Allies Corrupted . | . . . . . . . . . . Allies Melted . | . . . . . . . . . . Intel | -11 -10 -9 -9 -8 -7 -6 -5 -5 -5 ------- Run | Jun Mat Mat Min Mat Fac Fac Fac Upp Upp Robot Analysis Total . | . . . . . . . . . . Derelict Logs Recovered 2 | . . . 1 . . . . . 1 Drone Launches . | . . . . . . . . . . Drone Recoveries . | . . . . . . . . . . Exploration | -11 -10 -9 -9 -8 -7 -6 -5 -5 -5 ------------- Run | Jun Mat Mat Min Mat Fac Fac Fac Upp Upp Turns Passed 804 | 13 95 45 102 91 137 28 118 123 52 Spaces Moved 1809 | 21 134 79 201 178 423 78 312 280 103 Core 759 | 21 134 79 201 178 32 . . 11 103 Treads . | . . . . . . . . . . Legs . | . . . . . . . . . . Wheels . | . . . . . . . . . . Hover . | . . . . . . . . . . Flight 1050 | . . . . . 391 78 312 269 . Fastest Speed 26 | 50 50 50 50 50 26 32 34 39 50 Average Speed 41 | 50 50 50 50 50 29 33 36 43 50 Slowest Speed 50 | 50 50 50 50 50 50 35 40 50 50 Overloaded Moves . | . . . . . . . . . . Propulsion Burnouts . | . . . . . . . . . . Robots Hopped 25 | . . . . . 16 1 7 1 . Cave-ins Triggered . | . . . . . . . . . . Exploration Rate (%) 24 | 3 24 10 44 34 15 5 15 69 27 Regions Visited 9 Branch Regions 3 Pre-discovered Areas 1 | . . . . . . 1 . . . Known Exits Taken 3 | . . 1 . 1 . . 1 . . Unknown Exits Taken 6 | 1 1 . 1 . 1 1 . 1 . Scrap Searched 3 | . . . 1 . . . . 1 1 Spaces Dug . | . . . . . . . . . . Terrain Destroyed . | . . . . . . . . . . Melee . | . . . . . . . . . . Projectile . | . . . . . . . . . . AOE . | . . . . . . . . . . Terrain Rammed . | . . . . . . . . . . Walls Destroyed . | . . . . . . . . . . Machines Disabled . | . . . . . . . . . . Actions | -11 -10 -9 -9 -8 -7 -6 -5 -5 -5 --------- Run | Jun Mat Mat Min Mat Fac Fac Fac Upp Upp Total 1826 | 22 159 82 201 178 418 77 307 279 103 Wait . | . . . . . . . . . . Move 1754 | 20 133 78 200 177 394 75 297 277 103 Hop 21 | . . . . . 12 1 7 1 . Pick Up 9 | . 7 . . . 2 . . . . Fast Attach 15 | 2 3 3 . 1 2 1 3 . . Attach 5 | . . . . . 5 . . . . Detach . | . . . . . . . . . . Swap 2 | . 2 . . . . . . . . Drop 11 | . 6 1 . . 3 . . 1 . Fire . | . . . . . . . . . . Melee 2 | . 2 . . . . . . . . Ram 7 | . 6 . 1 . . . . . . Kick . | . . . . . . . . . . Crush . | . . . . . . . . . . Escape Stasis . | . . . . . . . . . . Rewire . | . . . . . . . . . . Trap . | . . . . . . . . . . Miscellaneous . | . . . . . . . . . . Route ------- -11/Junkyard -10/Materials -9/Materials -9/Mines -8/Materials (discovered 4 exits: *Fac x3 / [*Sto]) -7/Factory -6/Factory -5/Factory (discovered 5 exits: [*Fac] / *Upp x2 / Ext x2) -5/Upper Caves -5/Upper Caves (discovered 1 exit: [*Fac]) History --------- Turn | Location | Event 3 | -11/Junkyard | Discovered new exit (range 16) 14 | -11/Junkyard | Entered Materials 104 | -10/Materials | Discovered new exit (range 11) 109 | -10/Materials | Entered another Materials area 109 | -9/Materials | Evolved 2 slots: Propulsion x2 123 | -9/Materials | Identified exit to Mines 154 | -9/Materials | Entered Mines 170 | -9/Mines | Learned Materials security intel 173 | -9/Mines | Found a damaged Exp. Sensor Array with a note attached 200 | -9/Mines | YI-UF0 nonchalantly dropped a Grenade Launcher on the ground 254 | -9/Mines | Discovered new exit (range 5) 256 | -9/Mines | Entered Materials 256 | -8/Materials | Evolved 2 slots: Propulsion x1, Utility x1 261 | -8/Materials | Discovered new exit (range 16) 268 | -8/Materials | Identified exit to Factory 347 | -8/Materials | Entered Factory 347 | -7/Factory | Evolved 2 slots: Power x1, Utility x1 361 | -7/Factory | Build established: Hacker-Mutant 393 | -7/Factory | Fabricated K-01 Serf? 476 | -7/Factory | Discovered new exit (range 12) 484 | -7/Factory | Entered another Factory area 484 | -6/Factory | Evolved 2 slots: Utility x2 506 | -6/Factory | Discovered new exit (range 16) 512 | -6/Factory | Entered another Factory area 512 | -5/Factory | Evolved 2 slots: Propulsion x2 531 | -5/Factory | Lost 3 parts (2n1u) 571 | -5/Factory | Identified exit to Upper Caves 571 | -5/Factory | Identified exit to Extension 611 | -5/Factory | Discovered new exit (range 13) 630 | -5/Factory | Entered Upper Caves 737 | -5/Upper Caves | Attracted the attention of an 0b10 outpost 744 | -5/Upper Caves | Discovered new exit (range 19) 753 | -5/Upper Caves | Entered another Upper Caves area 754 | -5/Upper Caves | Discovered new exit (range 20) 760 | -5/Upper Caves | Learned 4 Factory zone layouts 788 | -5/Upper Caves | Build established: Mutant 795 | -5/Upper Caves | Spotted B-75 Beast 796 | -5/Upper Caves | Attracted the attention of an 0b10 checkpoint 796 | -5/Upper Caves | Core integrity fell below 50% 805 | -5/Upper Caves | Self-destructed Last Messages --------------- 00737_ B-60 Warrior springs to life. 00739_ Slug penetrates Wall. 00741_ Y-72 Warden: "REQUESTING BACKUP." 00744_ EXIT=FOUND 00748_ Penetrated by Slug. 00748_ Field Propulsion Drive destroyed. 00748_ Dropped Mic. Fission Core. LOCATION=UNKNOWN GOAL=ESCAPE 00754_ 07-IWW(k) breaks down the debris. 00754_ EXIT=FOUND 00760_ Acquired derelict log, extracted data. Data stored: Factory zone layouts (x4). 00764_ Searching scrap... 00764_ Found 22 Matter. 00764_ Found Stasis Canceller. 00764_ Found 19 Matter. 00795_ Slug penetrates Wall. 00796_ Y-64 Sentinel: "INTERCEPTING UNREGISTERED DERELICT." 00802_ Knocked back. Map ----- +----------------------------------------------------+ | ????????????????????????## ##?????????## | | ????????????????????????# #????????## | | ????????????????????????# ##???????# | | ????????????????????????# #???????# | | ????????????????????????# #???????# ### | | ??????????????????#####?# ######### ##?# | | ?????????????#???## ## #?## | | ?????????????# ## # #?# | | ?????????????# ## ### ##########?## | | ?????????????# Y ### % ##??????????## | | ???????????????????# ##??????????# | | ???????????????????# # ######?????## | | ??????????????????????## s #?????# | | ???????????????????????## # #?????# | | ????????????????????????# # ### #?????? | | ????????????????????????## s #######??? #?????# | | ????????????????????????## #????????????????# | | ????????????????????????# s #????????????????# | | ????????????????????????# #### ???????? | | ????????????????????????#% #??# ??? | | ????????????????????????# #??# #########?? ???? | | ????????????????????????# #??# #????????????????? | | ????????????????????????# #??? #????????????????? | | ?????????????????????#### #??? #????????????????? | | ?????????????????????# #??? #????????????????? | | ?????????????????????# @s#??? ????????????????? | | ?????????????????????# s ????????????????? | | ????????????????????# ss #??????????????? | | ????????????????????# s #??????????????? | | ????????????????????## ########??????????????? | | ?????????????????????#######?????????????????????? | | ?????????????????????????????????????????????????? | | ?????????????????????????????????????????????????? | | ?????????????????????????????????????????????????? | | ?????????????????????????????????????????????????? | | ?????????????????????????????????????????????????? | | ?????????????????????????????????????????????????? | | ?????????????????????????????????????????????????? | | ?????????????????????????????????????????????????? | | ?????????????????????????????????????????????????? | | ?????????????????????????????????????????????????? | | ?????????????????????????????????????????????????? | | ?????????????????????????????????????????????????? | | ?????????????????????????????????????????????????? | | ?????????????????????????????????????????????????? | | ?????????????????????????????????????????????????? | | | | | | | | | +----------------------------------------------------+ Best States ------------- Heat Dissipation 40 Energy Generation 16 Energy Capacity 290 Matter Stores 277 Matter Capacity 300 Sight Range 20 Terrain Scan Density 10 Propulsion Shielding 33 Evasion (%) 64 Offensive Hacking 20 Defensive Hacking 10 Item Schematics ----------------- None Robot Schematics ------------------ None Fabricated ------------ K-01 Serf | x1 | -7/Factory | Preloaded Alien Tech Used ----------------- None Achievements -------------- None Challenges ------------ None Game ------ Seed HeatArmoredActivator Manual? 0 Play Time 00:11:03 Cumulative 173.5 hours Start 2023.05.04 @ 12:28:12 End 2023.05.04 @ 12:42:21 Sessions 1 Manual Loads 0 Difficulty Rogue Special Mode None Game No. 514 Rogue 514 Adventurer 0 Explorer 0 Win Type - Total 8 Types 7/0/0/1/0/0/0/0/0 Lore% 70 Gallery% 74 Achievement% 65 Wizard Run 0 Options --------- ASCII 0 Keyboard 0 Movement Numpad Keybinds 0 Fullscreen 1 Font 16/SmallcapsGlow Map View 75x55 Tactical HUD 1 Map Filters NONE Filters NONE Steam 1 RUN: 9d22af8c-ba7d-437b-a30c-805778e49e88